[Event "Early-Titled-Tuesday-Blitz-October-24-2023"]
[Site "Chess.com"]
[Date "2023.10.24"]
[Round "7"]
[White "BeautiFullMindChess"]
[Black "CHENNAIBOND"]
[Result "0-1"]
[WhiteElo "2237"]
[BlackElo "1690"]
[TimeControl "180+1"]
[EndTime "9:14:51 PDT"]
[Termination "CHENNAIBOND won by resignation"]

1. e4 {[%clk 0:02:47.3]} 1... c5 {[%clk 0:02:59.8]} 2. Nf3 {[%clk 0:02:46.4]}
2... Nc6 {[%clk 0:03:00.4]} 3. d4 {[%clk 0:02:46.9]} 3... cxd4 {[%clk
0:03:01.2]} 4. Nxd4 {[%clk 0:02:47.3]} 4... Nf6 {[%clk 0:03:01.6]} 5. Nc3 {[%clk
0:02:47.8]} 5... e5 {[%clk 0:03:01.3]} 6. Ndb5 {[%clk 0:02:48.1]} 6... d6 {[%clk
0:03:01.7]} 7. Bg5 {[%clk 0:02:47.8]} 7... a6 {[%clk 0:03:02.3]} 8. Na3 {[%clk
0:02:47.7]} 8... b5 {[%clk 0:03:02.9]} 9. Nd5 {[%clk 0:02:48.2]} 9... Be7 {[%clk
0:03:03.3]} 10. Bxf6 {[%clk 0:02:48.8]} 10... Bxf6 {[%clk 0:03:03.8]} 11. c3
{[%clk 0:02:28]} 11... Bg5 {[%clk 0:02:59.9]} 12. Nc2 {[%clk 0:02:27.5]} 12...
Be6 {[%clk 0:02:54.2]} 13. a4 {[%clk 0:02:25.7]} 13... bxa4 {[%clk 0:02:48.9]}
14. Rxa4 {[%clk 0:02:24.3]} 14... a5 {[%clk 0:02:48.7]} 15. Bc4 {[%clk
0:02:22.9]} 15... Rb8 {[%clk 0:02:43.5]} 16. b3 {[%clk 0:02:23]} 16... O-O
{[%clk 0:02:35.6]} 17. h4 {[%clk 0:02:19.1]} 17... Bh6 {[%clk 0:02:34.7]} 18. g3
{[%clk 0:02:08.3]} 18... Kh8 {[%clk 0:02:03]} 19. O-O {[%clk 0:02:08.1]} 19...
f5 {[%clk 0:01:57.3]} 20. exf5 {[%clk 0:02:07.1]} 20... Bxf5 {[%clk 0:01:54.6]}
21. Nce3 {[%clk 0:02:04]} 21... Be4 {[%clk 0:01:52.8]} 22. Be2 {[%clk
0:01:59.1]} 22... Bxe3 {[%clk 0:01:44.9]} 23. Nxe3 {[%clk 0:00:49.5]} 23... d5
{[%clk 0:01:44.2]} 24. Bd3 {[%clk 0:00:17.8]} 24... Bf3 {[%clk 0:01:39.8]} 25.
Be2 {[%clk 0:00:17.4]} 25... Bxe2 {[%clk 0:01:14.5]} 26. Qxe2 {[%clk 0:00:18.3]}
26... Rxb3 {[%clk 0:01:14.2]} 27. Rd1 {[%clk 0:00:15.4]} 27... d4 {[%clk
0:00:58.2]} 28. Qc4 {[%clk 0:00:12.4]} 28... Rxc3 {[%clk 0:00:55.5]} 29. Qxc3
{[%clk 0:00:10]} 29... dxc3 {[%clk 0:00:53.4]} 30. Rxd8 {[%clk 0:00:10.9]} 30...
Rxd8 {[%clk 0:00:53]} 31. Rc4 {[%clk 0:00:10.5]} 31... Nd4 {[%clk 0:00:49.4]}
32. Kf1 {[%clk 0:00:09]} 32... c2 {[%clk 0:00:40.9]} 33. Nxc2 {[%clk 0:00:08.4]}
33... Nxc2 {[%clk 0:00:40.7]} 34. Rxc2 {[%clk 0:00:09.3]} 34... a4 {[%clk
0:00:40.1]} 35. Ra2 {[%clk 0:00:07.2]} 35... Ra8 {[%clk 0:00:40.3]} 36. Ke2
{[%clk 0:00:08.1]} 36... Kg8 {[%clk 0:00:40.2]} 37. Kd3 {[%clk 0:00:09]} 37...
Kf7 {[%clk 0:00:40.2]} 38. Kc4 {[%clk 0:00:09.4]} 38... Kf6 {[%clk 0:00:40]} 39.
Kb5 {[%clk 0:00:09.4]} 39... Kf5 {[%clk 0:00:39.7]} 40. f3 {[%clk 0:00:09.7]}
40... g6 {[%clk 0:00:39.3]} 41. Ra3 {[%clk 0:00:09.2]} 41... Rb8+ {[%clk
0:00:39.4]} 42. Kxa4 {[%clk 0:00:08.6]} 42... Ra8+ {[%clk 0:00:39.7]} 43. Kb3
{[%clk 0:00:08.5]} 43... Rxa3+ {[%clk 0:00:40.6]} 44. Kxa3 {[%clk 0:00:09.2]}
44... e4 {[%clk 0:00:39.8]} 45. fxe4+ {[%clk 0:00:09.6]} 45... Kxe4 {[%clk
0:00:40.4]} 46. Kb4 {[%clk 0:00:10.1]} 46... Kf3 {[%clk 0:00:40.7]} 47. g4
{[%clk 0:00:10.5]} 47... Kxg4 {[%clk 0:00:41.1]} 0-1

[Event "Early-Titled-Tuesday-Blitz-October-24-2023"]
[Site "Chess.com"]
[Date "2023.10.24"]
[Round "7"]
[White "krzyzan94"]
[Black "ketster"]
[Result "0-1"]
[WhiteElo "2737"]
[BlackElo "2523"]
[TimeControl "180+1"]
[EndTime "9:14:54 PDT"]
[Termination "ketster won by checkmate"]

1. Nf3 {[%clk 0:03:00.9]} 1... Nf6 {[%clk 0:02:50.3]} 2. g3 {[%clk 0:03:01.3]}
2... e6 {[%clk 0:02:48.9]} 3. Bg2 {[%clk 0:03:01.4]} 3... d5 {[%clk 0:02:49]} 4.
O-O {[%clk 0:03:02]} 4... c5 {[%clk 0:02:46.7]} 5. c4 {[%clk 0:03:00.4]} 5... d4
{[%clk 0:02:45]} 6. e3 {[%clk 0:02:59.5]} 6... Nc6 {[%clk 0:02:45.5]} 7. exd4
{[%clk 0:02:59.7]} 7... cxd4 {[%clk 0:02:46.4]} 8. d3 {[%clk 0:02:57.6]} 8... h6
{[%clk 0:02:44.6]} 9. Re1 {[%clk 0:02:56.5]} 9... Bd6 {[%clk 0:02:44.1]} 10. Na3
{[%clk 0:02:52.6]} 10... O-O {[%clk 0:02:39.5]} 11. Nc2 {[%clk 0:02:51.9]} 11...
e5 {[%clk 0:02:38.5]} 12. b3 {[%clk 0:02:27.1]} 12... Bg4 {[%clk 0:02:30]} 13.
Ba3 {[%clk 0:02:16.9]} 13... a5 {[%clk 0:02:24.7]} 14. h3 {[%clk 0:02:13.4]}
14... Bh5 {[%clk 0:02:18.8]} 15. Qd2 {[%clk 0:01:54.5]} 15... Bg6 {[%clk
0:02:06]} 16. Rad1 {[%clk 0:00:53.1]} 16... Re8 {[%clk 0:01:48]} 17. Bxd6 {[%clk
0:00:45.6]} 17... Qxd6 {[%clk 0:01:48.9]} 18. Nh4 {[%clk 0:00:44.9]} 18... Bh7
{[%clk 0:01:45.3]} 19. Qc1 {[%clk 0:00:41.8]} 19... Nb4 {[%clk 0:01:39]} 20.
Nxb4 {[%clk 0:00:38.5]} 20... axb4 {[%clk 0:01:38.3]} 21. Re2 {[%clk 0:00:37.9]}
21... Ra7 {[%clk 0:01:26.2]} 22. Nf3 {[%clk 0:00:32.5]} 22... b6 {[%clk
0:01:20.8]} 23. Qd2 {[%clk 0:00:28.5]} 23... Rae7 {[%clk 0:01:13.4]} 24. Rde1
{[%clk 0:00:26.1]} 24... Nd7 {[%clk 0:01:05.2]} 25. Nh4 {[%clk 0:00:25.8]} 25...
Nc5 {[%clk 0:00:57.3]} 26. Be4 {[%clk 0:00:25.3]} 26... Bxe4 {[%clk 0:00:42.6]}
27. dxe4 {[%clk 0:00:26.2]} 27... Qf6 {[%clk 0:00:29.4]} 28. Nf5 {[%clk
0:00:22.1]} 28... Ra7 {[%clk 0:00:28.9]} 29. g4 {[%clk 0:00:18.5]} 29... Rea8
{[%clk 0:00:28.3]} 30. Kg2 {[%clk 0:00:08.4]} 30... d3 {[%clk 0:00:27.7]} 31.
Re3 {[%clk 0:00:07.7]} 31... Rxa2 {[%clk 0:00:27.3]} 32. Qxb4 {[%clk 0:00:08.5]}
32... g6 {[%clk 0:00:20.2]} 33. Ng3 {[%clk 0:00:04.9]} 33... Qxf2+ {[%clk
0:00:19]} 34. Kh1 {[%clk 0:00:03.3]} 34... Qg2# {[%clk 0:00:18.7]} 0-1

[Event "Early-Titled-Tuesday-Blitz-October-24-2023"]
[Site "Chess.com"]
[Date "2023.10.24"]
[Round "7"]
[White "Krakozia"]
[Black "M_One1126"]
[Result "0-1"]
[WhiteElo "2936"]
[BlackElo "2653"]
[TimeControl "180+1"]
[EndTime "9:14:56 PDT"]
[Termination "M_One1126 won on time"]

1. c4 {[%clk 0:03:00.9]} 1... Nf6 {[%clk 0:02:58.4]} 2. Nc3 {[%clk 0:03:00.8]}
2... c6 {[%clk 0:02:57.6]} 3. e4 {[%clk 0:02:59.2]} 3... d5 {[%clk 0:02:58.5]}
4. e5 {[%clk 0:02:58.1]} 4... d4 {[%clk 0:02:58.5]} 5. exf6 {[%clk 0:02:53.7]}
5... dxc3 {[%clk 0:02:58.6]} 6. bxc3 {[%clk 0:02:53.2]} 6... exf6 {[%clk
0:02:57.7]} 7. d4 {[%clk 0:02:51.7]} 7... Bd6 {[%clk 0:02:57.5]} 8. c5 {[%clk
0:02:50.4]} 8... Bc7 {[%clk 0:02:56.9]} 9. Bd3 {[%clk 0:02:46.2]} 9... O-O
{[%clk 0:02:56.8]} 10. Ne2 {[%clk 0:02:46.7]} 10... Nd7 {[%clk 0:02:51.7]} 11.
Qc2 {[%clk 0:02:45.9]} 11... h5 {[%clk 0:02:35.7]} 12. O-O {[%clk 0:02:42.4]}
12... h4 {[%clk 0:02:35.6]} 13. Bf4 {[%clk 0:02:22.2]} 13... Re8 {[%clk
0:02:33.5]} 14. Rfe1 {[%clk 0:02:14.4]} 14... b6 {[%clk 0:02:31.3]} 15. Bh7+
{[%clk 0:02:00.2]} 15... Kh8 {[%clk 0:02:31.1]} 16. Be4 {[%clk 0:01:51.7]} 16...
bxc5 {[%clk 0:02:26.5]} 17. Bxc6 {[%clk 0:01:46.9]} 17... Rb8 {[%clk 0:02:26]}
18. d5 {[%clk 0:01:43.5]} 18... Bb7 {[%clk 0:01:39.2]} 19. Qf5 {[%clk
0:01:02.7]} 19... Bxc6 {[%clk 0:01:27]} 20. dxc6 {[%clk 0:01:02.2]} 20... Ne5
{[%clk 0:01:24.5]} 21. Rad1 {[%clk 0:01:02.6]} 21... Qc8 {[%clk 0:01:01.3]} 22.
Rd7 {[%clk 0:00:47.8]} 22... Kg8 {[%clk 0:00:42]} 23. Red1 {[%clk 0:00:48]}
23... Rb2 {[%clk 0:00:25.9]} 24. Bxe5 {[%clk 0:00:18.6]} 24... Bxe5 {[%clk
0:00:22.4]} 25. c7 {[%clk 0:00:04.3]} 25... Rxe2 {[%clk 0:00:13.6]} 26. f4
{[%clk 0:00:02.3]} 26... Bxc7 {[%clk 0:00:08.5]} 27. Qh5 {[%clk 0:00:01.8]}
27... Re1+ {[%clk 0:00:07.3]} 0-1

[Event "Early-Titled-Tuesday-Blitz-October-24-2023"]
[Site "Chess.com"]
[Date "2023.10.24"]
[Round "7"]
[White "mbachez"]
[Black "Kirill_Klukin"]
[Result "1-0"]
[WhiteElo "2490"]
[BlackElo "2633"]
[TimeControl "180+1"]
[EndTime "9:15:00 PDT"]
[Termination "mbachez won on time"]

1. e4 {[%clk 0:03:00.9]} 1... c5 {[%clk 0:03:00]} 2. Nf3 {[%clk 0:03:00.3]} 2...
g6 {[%clk 0:03:00.3]} 3. Bc4 {[%clk 0:02:58.8]} 3... Bg7 {[%clk 0:03:00.4]} 4.
O-O {[%clk 0:02:59]} 4... Nc6 {[%clk 0:03:00.7]} 5. c3 {[%clk 0:02:58]} 5... e6
{[%clk 0:02:56.1]} 6. d4 {[%clk 0:02:57.6]} 6... cxd4 {[%clk 0:02:56.3]} 7. Nxd4
{[%clk 0:02:57.9]} 7... d5 {[%clk 0:02:57]} 8. exd5 {[%clk 0:02:55.1]} 8... exd5
{[%clk 0:02:32.3]} 9. Bb5 {[%clk 0:02:53.9]} 9... Ne7 {[%clk 0:02:31.2]} 10. Be3
{[%clk 0:02:48.6]} 10... O-O {[%clk 0:02:30.2]} 11. Nd2 {[%clk 0:02:48.7]} 11...
Nxd4 {[%clk 0:02:29.1]} 12. Bxd4 {[%clk 0:02:47.7]} 12... Bxd4 {[%clk
0:02:28.9]} 13. cxd4 {[%clk 0:02:47.6]} 13... Qb6 {[%clk 0:02:27.5]} 14. Qb3
{[%clk 0:02:43]} 14... Qxd4 {[%clk 0:02:23.6]} 15. Nf3 {[%clk 0:02:42.2]} 15...
Qf6 {[%clk 0:02:24]} 16. Be2 {[%clk 0:02:29.4]} 16... b6 {[%clk 0:02:20.3]} 17.
Rfd1 {[%clk 0:02:26.6]} 17... Bg4 {[%clk 0:02:17.7]} 18. a4 {[%clk 0:02:23.7]}
18... Rfd8 {[%clk 0:02:12.7]} 19. h3 {[%clk 0:02:19.4]} 19... Bf5 {[%clk
0:02:03.8]} 20. Nd4 {[%clk 0:02:18.7]} 20... Rac8 {[%clk 0:02:03.9]} 21. a5
{[%clk 0:02:16.6]} 21... Nc6 {[%clk 0:01:56.5]} 22. Nxf5 {[%clk 0:02:15.3]}
22... gxf5 {[%clk 0:01:30.4]} 23. axb6 {[%clk 0:02:12.5]} 23... Nd4 {[%clk
0:01:30.4]} 24. Rxd4 {[%clk 0:01:59]} 24... Qxd4 {[%clk 0:01:30.4]} 25. bxa7
{[%clk 0:01:57.8]} 25... Kg7 {[%clk 0:00:38.9]} 26. Bf3 {[%clk 0:01:55]} 26...
Ra8 {[%clk 0:00:33.8]} 27. Ra4 {[%clk 0:01:53.8]} 27... Qc5 {[%clk 0:00:29]} 28.
Qb7 {[%clk 0:01:42.5]} 28... Qc2 {[%clk 0:00:17.4]} 29. Qb4 {[%clk 0:01:35.1]}
29... Qc7 {[%clk 0:00:12.5]} 30. Qd4+ {[%clk 0:01:26.2]} 30... f6 {[%clk
0:00:12.4]} 31. Bxd5 {[%clk 0:01:23.1]} 31... Rd7 {[%clk 0:00:11.8]} 32. Qd3
{[%clk 0:01:05.8]} 32... Rxa7 {[%clk 0:00:11.7]} 33. Rxa7 {[%clk 0:01:04.3]}
33... Qxa7 {[%clk 0:00:12.6]} 34. Qg3+ {[%clk 0:01:04.2]} 34... Kf8 {[%clk
0:00:13.3]} 35. Qg8+ {[%clk 0:01:03.4]} 35... Ke7 {[%clk 0:00:13.4]} 36. Qe6+
{[%clk 0:01:03.5]} 36... Kd8 {[%clk 0:00:13.6]} 37. Qxf6+ {[%clk 0:01:03.6]}
37... Kc7 {[%clk 0:00:13.3]} 38. Qe5+ {[%clk 0:01:03.1]} 38... Kd8 {[%clk
0:00:13.2]} 39. g3 {[%clk 0:00:55.9]} 39... Qc5 {[%clk 0:00:09.5]} 40. Qh8+
{[%clk 0:00:51.1]} 40... Kc7 {[%clk 0:00:09.4]} 41. Be6 {[%clk 0:00:45.7]} 41...
Qc1+ {[%clk 0:00:08.9]} 42. Kh2 {[%clk 0:00:44.2]} 42... Rd2 {[%clk 0:00:06.4]}
43. Qc8+ {[%clk 0:00:42.3]} 1-0

[Event "Early-Titled-Tuesday-Blitz-October-24-2023"]
[Site "Chess.com"]
[Date "2023.10.24"]
[Round "7"]
[White "WhiteKnight2612"]
[Black "GMWSO"]
[Result "0-1"]
[WhiteElo "2827"]
[BlackElo "3074"]
[TimeControl "180+1"]
[EndTime "9:15:02 PDT"]
[Termination "GMWSO won by resignation"]

1. Nf3 {[%clk 0:03:00.9]} 1... Nf6 {[%clk 0:02:56.1]} 2. g3 {[%clk 0:03:01.4]}
2... d5 {[%clk 0:02:55.3]} 3. Bg2 {[%clk 0:03:02.3]} 3... Bg4 {[%clk 0:02:53.4]}
4. O-O {[%clk 0:03:02.4]} 4... e6 {[%clk 0:02:54]} 5. c4 {[%clk 0:03:02]} 5...
c6 {[%clk 0:02:53.7]} 6. Ne5 {[%clk 0:02:59.1]} 6... Bh5 {[%clk 0:02:51.6]} 7.
d4 {[%clk 0:02:58.4]} 7... Nbd7 {[%clk 0:02:48.5]} 8. Nc3 {[%clk 0:02:58.1]}
8... Nxe5 {[%clk 0:02:47.8]} 9. dxe5 {[%clk 0:02:57.4]} 9... Nd7 {[%clk
0:02:48.7]} 10. cxd5 {[%clk 0:02:55.5]} 10... cxd5 {[%clk 0:02:48.6]} 11. Qa4
{[%clk 0:02:51.8]} 11... a6 {[%clk 0:02:41.3]} 12. g4 {[%clk 0:01:39.3]} 12...
b5 {[%clk 0:02:35.1]} 13. Qf4 {[%clk 0:01:38.7]} 13... Bg6 {[%clk 0:02:35.2]}
14. Rd1 {[%clk 0:01:38.9]} 14... Rc8 {[%clk 0:02:08.8]} 15. e4 {[%clk
0:01:28.6]} 15... b4 {[%clk 0:02:04.5]} 16. Nxd5 {[%clk 0:01:20.1]} 16... exd5
{[%clk 0:02:04.7]} 17. exd5 {[%clk 0:01:21]} 17... Bc5 {[%clk 0:01:59.8]} 18. e6
{[%clk 0:01:18.8]} 18... Nf6 {[%clk 0:01:47.9]} 19. d6 {[%clk 0:01:12]} 19...
fxe6 {[%clk 0:01:39.9]} 20. d7+ {[%clk 0:00:56.3]} 20... Nxd7 {[%clk 0:01:39.6]}
21. Be3 {[%clk 0:00:55.6]} 21... Rf8 {[%clk 0:01:35.4]} 22. Qc4 {[%clk
0:00:37.7]} 22... Bxe3 {[%clk 0:01:27.4]} 23. Qxe6+ {[%clk 0:00:38.3]} 23... Qe7
{[%clk 0:01:27.6]} 24. Qxa6 {[%clk 0:00:38.9]} 24... Bxf2+ {[%clk 0:01:19.1]}
25. Kh1 {[%clk 0:00:39.5]} 25... Rd8 {[%clk 0:01:19.2]} 26. Rd2 {[%clk
0:00:34.3]} 26... Be4 {[%clk 0:01:10.8]} 27. Re2 {[%clk 0:00:33.2]} 27... Be3
{[%clk 0:01:09.3]} 28. Qc4 {[%clk 0:00:20.4]} 28... Bxg2+ {[%clk 0:01:08]} 29.
Kxg2 {[%clk 0:00:21.3]} 29... Rf4 {[%clk 0:01:02.6]} 30. Qc6 {[%clk 0:00:19.2]}
30... Rxg4+ {[%clk 0:00:55.5]} 31. Kh1 {[%clk 0:00:17.1]} 31... Qe4+ {[%clk
0:00:54]} 32. Qxe4+ {[%clk 0:00:17.7]} 32... Rxe4 {[%clk 0:00:54.7]} 33. Rae1
{[%clk 0:00:18.2]} 33... Nc5 {[%clk 0:00:53.5]} 34. Rxe3 {[%clk 0:00:18.9]}
34... Rxe3 {[%clk 0:00:53.9]} 35. Rxe3+ {[%clk 0:00:19.8]} 35... Kf7 {[%clk
0:00:54.3]} 36. Re5 {[%clk 0:00:20.1]} 36... Rd1+ {[%clk 0:00:51]} 37. Kg2
{[%clk 0:00:20.5]} 37... Rd2+ {[%clk 0:00:51.9]} 38. Kg3 {[%clk 0:00:21.1]}
38... Ne6 {[%clk 0:00:50.6]} 39. b3 {[%clk 0:00:19.9]} 39... Rxa2 {[%clk
0:00:49.7]} 40. Rb5 {[%clk 0:00:20.6]} 40... Ra3 {[%clk 0:00:48]} 41. Rxb4
{[%clk 0:00:20.9]} 41... Nc5 {[%clk 0:00:48.6]} 42. Rc4 {[%clk 0:00:21.4]} 42...
Rxb3+ {[%clk 0:00:48.4]} 43. Kh4 {[%clk 0:00:21.8]} 43... Ne6 {[%clk 0:00:48.4]}
44. h3 {[%clk 0:00:22.2]} 44... g6 {[%clk 0:00:46.7]} 45. Ra4 {[%clk 0:00:22.4]}
45... Kf6 {[%clk 0:00:46.1]} 46. Ra7 {[%clk 0:00:22.5]} 46... h6 {[%clk
0:00:41.3]} 47. Rf7+ {[%clk 0:00:21.3]} 47... Kxf7 {[%clk 0:00:32.9]} 48. Kg4
{[%clk 0:00:20.2]} 48... Kf6 {[%clk 0:00:33.8]} 0-1

[Event "Early-Titled-Tuesday-Blitz-October-24-2023"]
[Site "Chess.com"]
[Date "2023.10.24"]
[Round "7"]
[White "rezamahdavi2008"]
[Black "Grandmaster1369"]
[Result "1-0"]
[WhiteElo "2897"]
[BlackElo "2799"]
[TimeControl "180+1"]
[EndTime "9:15:11 PDT"]
[Termination "rezamahdavi2008 won by resignation"]

1. Nf3 {[%clk 0:03:00.9]} 1... c5 {[%clk 0:02:54.8]} 2. c4 {[%clk 0:03:00.3]}
2... g6 {[%clk 0:02:55.3]} 3. Nc3 {[%clk 0:02:54]} 3... Bg7 {[%clk 0:02:55.6]}
4. g3 {[%clk 0:02:54.4]} 4... Nc6 {[%clk 0:02:55.5]} 5. Bg2 {[%clk 0:02:54.9]}
5... e6 {[%clk 0:02:56]} 6. a3 {[%clk 0:02:52.4]} 6... Nge7 {[%clk 0:02:55]} 7.
Rb1 {[%clk 0:02:32.5]} 7... a5 {[%clk 0:02:52.8]} 8. d3 {[%clk 0:02:27]} 8...
O-O {[%clk 0:02:52.4]} 9. O-O {[%clk 0:02:25.6]} 9... d5 {[%clk 0:02:52.5]} 10.
Bd2 {[%clk 0:02:21.4]} 10... h6 {[%clk 0:02:34.8]} 11. cxd5 {[%clk 0:02:18]}
11... exd5 {[%clk 0:02:34.5]} 12. Nb5 {[%clk 0:02:18.1]} 12... Be6 {[%clk
0:02:25.6]} 13. Qc1 {[%clk 0:02:17.9]} 13... Qb6 {[%clk 0:02:16]} 14. a4 {[%clk
0:02:15.7]} 14... Kh7 {[%clk 0:02:15.1]} 15. Bf4 {[%clk 0:02:14.2]} 15... Rac8
{[%clk 0:02:11.6]} 16. Nd2 {[%clk 0:02:09.1]} 16... Nd4 {[%clk 0:02:07.4]} 17.
Nxd4 {[%clk 0:02:07.7]} 17... cxd4 {[%clk 0:02:01.9]} 18. Qd1 {[%clk 0:02:06.8]}
18... g5 {[%clk 0:02:02.3]} 19. b4 {[%clk 0:01:54.8]} 19... axb4 {[%clk
0:01:51.8]} 20. a5 {[%clk 0:01:54.6]} 20... Qd8 {[%clk 0:01:49.3]} 21. Rxb4
{[%clk 0:01:53.2]} 21... gxf4 {[%clk 0:01:49.7]} 22. Rxb7 {[%clk 0:01:53.5]}
22... fxg3 {[%clk 0:01:43.8]} 23. hxg3 {[%clk 0:01:54.4]} 23... Nf5 {[%clk
0:01:40.3]} 24. a6 {[%clk 0:01:51.8]} 24... Qa5 {[%clk 0:01:36.8]} 25. a7 {[%clk
0:01:48.1]} 25... Ra8 {[%clk 0:01:20]} 26. Nb3 {[%clk 0:01:43.5]} 26... Qa3
{[%clk 0:01:07]} 27. Qa1 {[%clk 0:01:43.6]} 27... Qxa1 {[%clk 0:01:06.9]} 28.
Rxa1 {[%clk 0:01:44.5]} 28... Nd6 {[%clk 0:01:01.7]} 29. Rb6 {[%clk 0:01:40.1]}
29... Rfd8 {[%clk 0:00:55.7]} 30. Nc5 {[%clk 0:01:36.7]} 30... Kg6 {[%clk
0:00:54.4]} 31. Raa6 {[%clk 0:01:33.5]} 31... Bf8 {[%clk 0:00:52.5]} 32. Rc6
{[%clk 0:01:24.1]} 32... Kh7 {[%clk 0:00:44.2]} 33. Nxe6 {[%clk 0:01:15.2]}
33... fxe6 {[%clk 0:00:45.1]} 34. Bh3 {[%clk 0:01:15.7]} 34... e5 {[%clk
0:00:25.3]} 35. Be6 {[%clk 0:01:15.5]} 35... Nb5 {[%clk 0:00:22.3]} 36. Rcb6
{[%clk 0:01:14.2]} 36... Nxa7 {[%clk 0:00:20.7]} 37. Rb7+ {[%clk 0:01:13.7]}
37... Kg6 {[%clk 0:00:20.1]} 38. Bxd5+ {[%clk 0:00:35.7]} 38... Rd6 {[%clk
0:00:18.7]} 39. Be4+ {[%clk 0:00:31.2]} 39... Kg5 {[%clk 0:00:17.4]} 40. Rxd6
{[%clk 0:00:27.3]} 40... Bxd6 {[%clk 0:00:16.3]} 41. Rg7+ {[%clk 0:00:28.1]}
41... Kf6 {[%clk 0:00:16.6]} 42. Rg6+ {[%clk 0:00:28.5]} 42... Kf7 {[%clk
0:00:16.4]} 43. Rxd6 {[%clk 0:00:28.5]} 43... Re8 {[%clk 0:00:16.7]} 44. Bg6+
{[%clk 0:00:27.5]} 44... Ke7 {[%clk 0:00:17.1]} 45. Ra6 {[%clk 0:00:28.3]} 1-0

[Event "Early-Titled-Tuesday-Blitz-October-24-2023"]
[Site "Chess.com"]
[Date "2023.10.24"]
[Round "7"]
[White "InitiatingASC"]
[Black "hsd2016"]
[Result "1-0"]
[WhiteElo "2336"]
[BlackElo "2261"]
[TimeControl "180+1"]
[EndTime "9:15:15 PDT"]
[Termination "InitiatingASC won on time"]

1. e4 {[%clk 0:03:00.9]} 1... e5 {[%clk 0:03:00.3]} 2. Nf3 {[%clk 0:02:58.9]}
2... d6 {[%clk 0:03:00.7]} 3. d4 {[%clk 0:02:58.3]} 3... exd4 {[%clk 0:03:01.6]}
4. Nxd4 {[%clk 0:02:56.9]} 4... Nf6 {[%clk 0:03:02.2]} 5. Nc3 {[%clk 0:02:56.7]}
5... Be7 {[%clk 0:03:02.6]} 6. Be3 {[%clk 0:02:55]} 6... O-O {[%clk 0:03:03.2]}
7. f3 {[%clk 0:02:52.3]} 7... Nc6 {[%clk 0:03:03.5]} 8. Qd2 {[%clk 0:02:52.2]}
8... Nxd4 {[%clk 0:02:56.4]} 9. Bxd4 {[%clk 0:02:51.9]} 9... Be6 {[%clk
0:02:57]} 10. g4 {[%clk 0:02:49.7]} 10... h6 {[%clk 0:02:53]} 11. h4 {[%clk
0:02:49.3]} 11... d5 {[%clk 0:02:46.2]} 12. g5 {[%clk 0:02:46.9]} 12... Nh5
{[%clk 0:02:36.6]} 13. gxh6 {[%clk 0:02:40.1]} 13... dxe4 {[%clk 0:02:30.3]} 14.
O-O-O {[%clk 0:02:34.5]} 14... c5 {[%clk 0:02:27.6]} 15. Bxg7 {[%clk 0:02:27.5]}
15... Qxd2+ {[%clk 0:02:28.5]} 16. Rxd2 {[%clk 0:02:26.6]} 16... Nxg7 {[%clk
0:02:28.5]} 17. hxg7 {[%clk 0:02:26.3]} 17... Kxg7 {[%clk 0:02:28.8]} 18. Nxe4
{[%clk 0:02:26]} 18... Rad8 {[%clk 0:02:27.1]} 19. Rg2+ {[%clk 0:02:23.3]} 19...
Kh6 {[%clk 0:02:24.1]} 20. Ng5 {[%clk 0:02:13.6]} 20... Bd6 {[%clk 0:02:21]} 21.
Bd3 {[%clk 0:02:04.2]} 21... Bf4+ {[%clk 0:02:16.3]} 22. Kb1 {[%clk 0:02:02.9]}
22... Bd5 {[%clk 0:01:57.9]} 23. Rhg1 {[%clk 0:01:42.9]} 23... f6 {[%clk
0:01:44.7]} 24. Ne4 {[%clk 0:01:34.1]} 24... c4 {[%clk 0:01:42.8]} 25. Rg6+
{[%clk 0:01:31.7]} 25... Kh5 {[%clk 0:01:41.9]} 26. Nxf6+ {[%clk 0:01:21.9]}
26... Rxf6 {[%clk 0:01:42.8]} 27. Rxf6 {[%clk 0:01:22]} 27... Be3 {[%clk
0:01:25.4]} 28. Bg6+ {[%clk 0:00:58.9]} 28... Kxh4 {[%clk 0:01:22.6]} 29. Rd1
{[%clk 0:00:57.5]} 29... c3 {[%clk 0:00:57.5]} 30. Be4 {[%clk 0:00:46.4]} 30...
Bxa2+ {[%clk 0:00:49.9]} 31. Kxa2 {[%clk 0:00:44.1]} 31... Rxd1 {[%clk
0:00:50.8]} 32. bxc3 {[%clk 0:00:42.6]} 32... Rd7 {[%clk 0:00:44.2]} 33. Kb3
{[%clk 0:00:39.4]} 33... Kg3 {[%clk 0:00:10.1]} 34. Rf8 {[%clk 0:00:36.5]} 34...
Rc7 {[%clk 0:00:09.5]} 35. Rb8 {[%clk 0:00:34.2]} 35... b6 {[%clk 0:00:07.3]}
36. c4 {[%clk 0:00:27.5]} 36... Kf4 {[%clk 0:00:06.6]} 37. Bd5 {[%clk
0:00:27.6]} 37... Ke5 {[%clk 0:00:06.7]} 38. Re8+ {[%clk 0:00:25.6]} 38... Kd4
{[%clk 0:00:06.1]} 39. Ka4 {[%clk 0:00:25.9]} 39... Bd2 {[%clk 0:00:03.6]} 40.
Kb5 {[%clk 0:00:23.5]} 40... Ba5 {[%clk 0:00:02.3]} 41. Ka6 {[%clk 0:00:23.1]}
41... Kc5 {[%clk 0:00:02.6]} 42. Ra8 {[%clk 0:00:22.2]} 42... b5 {[%clk
0:00:01.8]} 43. Kxa5 {[%clk 0:00:20.3]} 43... bxc4 {[%clk 0:00:01.2]} 44. Be4
{[%clk 0:00:20.6]} 44... c3 {[%clk 0:00:01.2]} 45. Ka6 {[%clk 0:00:20.7]} 1-0